bitfinex-derivatives/quotes_SOLF0:USTF0_20250829
["timestamp","ask_amount","ask_price","bid_price","bid_amount"]
[1756457378348,129.75,208.08,207.96,7.33]
[1756457379147,4.33,208.07,207.96,7.33]
[1756457381653,125.42,208.1,207.96,7.33]
[1756457382448,125.4,208.11,207.96,7.33]
[1756457383349,4.33,208.12,207.99,7.33]
[1756457384049,4.33,208.16,208.02,7.33]
[1756457384254,75.73,208.16,208.02,7.33]
[1756457384954,4.33,208.15,208.02,7.33]
[1756457385150,71.4,208.16,208.02,7.33]
[1756457385354,11.84995855,208.17,207.96,13.16]
[1756457385355,5.29774266,208.3,208.04,7.33]
[1756457385550,4.33,208.25,208.07,7.33]
[1756457385955,4.33,208.25,208.06,4.3251]
[1756457385956,4.33,208.25,208.08,11.84995855]
[1756457386156,4.33,208.25,208.09,7.33]
[1756457386953,4.33,208.25,208.13,7.33]
[1756457387356,4.33,208.25,208.06,4.0320386]
[1756457387357,4.33,208.24,208.07,7.33]
[1756457387558,14.4,208.25,208.07,7.33]
[1756457387760,4.33,208.24,208.07,7.33]
[1756457387957,4.33,208.24,208.08,7.33]
[1756457388563,4.33,208.24,208.09,7.33]
[1756457389763,4.33,208.24,208.09,11.6545]
[1756457390164,4.33,208.24,208.1,7.33]
[1756457392758,4.33,208.2,208.1,7.33]
[1756457392964,11.84995855,208.17,208.1,7.33]
[1756457393164,11.84995855,208.17,207.97,19.82173367]
[1756457393165,4.33,208.16,208.03,7.33]
[1756457393467,11.84995855,208.13,208.03,7.33]
[1756457393666,4.33,208.16,208.03,7.33]
[1756457394767,11.84995855,208.13,208.03,7.33]
[1756457395465,16.17995855,208.13,208.03,7.33]
[1756457400366,11.84995855,208.1,207.99,7.33]
[1756457400566,11.84995855,208.12,207.99,7.33]
[1756457401672,4.33,208.19,208.0,7.33]
[1756457401966,4.33,208.24,208.09,7.33]
[1756457402169,11.1,208.28,208.11,7.33]
[1756457402368,22.94995855,208.28,208.12,7.33]
[1756457402571,22.94995855,208.28,208.14,7.33]
[1756457402870,22.94995855,208.28,208.14,11.3620386]
[1756457403261,11.84995855,208.28,208.14,7.33]
[1756457403875,11.84995855,208.28,208.14,11.3620386]
[1756457404072,4.33,208.29,208.15,7.33]
[1756457404278,4.33,208.29,208.17,7.33]
[1756457404671,4.33,208.25,208.13,4.0320386]
[1756457404876,4.33,208.25,208.12,7.33]
[1756457407171,11.84995855,208.26,208.12,7.33]
[1756457407370,85.0,208.3,208.12,7.33]
[1756457407371,4.32,208.21,208.12,7.33]
[1756457411380,4.32,208.21,208.08,7.35]
[1756457411883,4.32,208.17,208.08,7.35]
[1756457412180,4.32,208.17,208.03,7.35]
[1756457412778,11.84995855,208.14,208.03,7.35]
[1756457413184,16.16995855,208.18,208.03,7.35]
[1756457414085,16.16995855,208.18,208.03,4.0320386]
[1756457414286,16.16995855,208.18,208.04,7.35]
[1756457414788,322.8,208.21,208.06,11.3820386]
[1756457414988,322.8,208.21,208.07,7.35]
[1756457415286,4.33,208.2,208.07,7.35]
[1756457416086,322.8,208.21,208.08,4.0320386]
[1756457416279,322.8,208.21,208.09,4.0320386]
[1756457416483,322.8,208.21,208.07,11.84995855]
[1756457416484,322.8,208.21,208.1,11.3820386]
[1756457416688,4.33,208.25,208.11,7.35]
[1756457416890,4.33,208.25,208.12,7.35]
[1756457420594,4.33,208.25,208.13,7.35]
[1756457420791,4.33,208.25,208.13,11.3820386]
[1756457420991,4.33,208.25,208.14,4.0320386]
[1756457421397,4.33,208.25,208.13,11.3820386]
[1756457421588,4.33,208.25,208.13,7.35]
[1756457421791,136.94995855,208.26,208.13,7.35]
[1756457422091,4.33,208.25,208.13,7.35]
[1756457422495,4.33,208.25,208.13,11.3820386]
[1756457422886,4.33,208.25,208.13,7.35]
[1756457423290,4.33,208.25,208.13,11.3820386]
[1756457423788,4.33,208.25,208.13,7.35]
[1756457423993,4.33,208.25,208.13,11.3820386]
[1756457424195,16.17995855,208.25,208.13,11.3820386]
[1756457424488,4.33,208.24,208.13,7.35]
[1756457425889,16.17995855,208.24,208.13,7.35]
[1756457426602,92.3,208.28,208.14,4.0320386]
[1756457426800,92.3,208.28,208.17,7.35]
[1756457427000,92.3,208.28,208.17,11.3820386]
[1756457427196,92.3,208.28,208.18,7.35]
[1756457427700,92.3,208.28,208.18,4.3227]
[1756457427996,92.3,208.28,208.19,7.35]
[1756457428700,4.33,208.39,208.23,4.0320386]
[1756457429004,4.33,208.39,208.25,7.35]
[1756457429201,4.33,208.39,208.25,11.3820386]
[1756457429403,4.33,208.39,208.25,7.35]
[1756457430504,4.33,208.39,208.27,11.3820386]
[1756457431399,4.33,208.39,208.27,7.35]
[1756457431902,4.33,208.39,208.27,11.3820386]
[1756457432102,136.76995855,208.42,208.29,7.35]
[1756457432603,4.33,208.44,208.29,7.35]
[1756457432799,4.33,208.44,208.31,7.35]
[1756457435704,4.31,208.4,208.25,11.3820386]
[1756457436002,4.31,208.38,208.25,7.35]
[1756457438506,11.84995855,208.37,208.25,7.35]
[1756457438899,4.34,208.36,208.25,7.35]
[1756457439105,11.84995855,208.33,208.19,7.29]
[1756457439400,4.34,208.32,208.19,7.29]
[1756457439797,39.48,208.32,208.19,7.29]
[1756457439999,4.34,208.28,208.19,7.29]
[1756457440703,4.34,208.28,208.14,7.29]
[1756457440905,4.34,208.24,208.14,7.29]
[1756457442497,29.42,208.24,208.07,4.0320386]
[1756457442697,4.34,208.2,208.09,7.29]
[1756457443199,4.34,208.16,208.05,180.15054586]
[1756457443907,4.34,208.16,208.04,7.29]
[1756457444104,23.68,208.16,208.04,7.29]
[1756457445710,4.34,208.16,208.05,4.3256]
[1756457445907,14.42,208.3,208.05,4.3256]
[1756457445908,11.84995855,208.19,208.06,7.29]
[1756457446405,4.34,208.21,208.06,11.3220386]
[1756457446608,4.34,208.21,208.08,7.29]
[1756457446806,4.34,208.26,208.09,11.3220386]
[1756457447006,4.34,208.26,208.11,7.29]
[1756457447509,4.34,208.26,208.12,4.3241]
[1756457447700,4.34,208.26,208.13,7.29]
[1756457450004,124.78,208.28,208.13,7.29]
[1756457450005,124.78,208.28,208.13,11.3220386]
[1756457450215,4.34,208.27,208.13,7.29]
[1756457450511,11.84995855,208.26,208.13,7.29]
[1756457451206,16.18995855,208.21,208.08,7.29]
[1756457455014,4.34,208.21,208.08,7.29]
[1756457456115,16.18995855,208.21,208.08,7.29]
[1756457460320,4.34,208.21,208.08,7.29]
[1756457460622,4.34,208.21,208.09,7.29]
[1756457460917,4.34,208.21,208.1,7.29]
[1756457462519,4.34,208.23,208.1,7.29]
[1756457462719,11.84995855,208.2,208.05,7.29]
[1756457462916,4.34,208.18,208.05,7.29]
[1756457463620,4.34,208.15,208.05,7.29]
[1756457464221,4.34,208.2,208.08,7.29]
[1756457464415,4.34,208.25,208.09,11.3220386]
[1756457464617,4.34,208.25,208.1,7.29]
[1756457465021,4.34,208.25,208.1,4.0320386]
[1756457465221,4.34,208.25,208.11,7.29]
[1756457465722,4.34,208.25,208.12,4.3241]
[1756457466325,14.42,208.3,208.13,19.13995855]
[1756457466326,4.32,208.3,208.13,19.13995855]
[1756457466624,4.32,208.3,208.16,7.18]
[1756457466820,4.32,208.3,208.19,7.18]
[1756457470518,11.84995855,208.26,208.14,7.18]
[1756457470725,4.32,208.24,208.14,7.18]
[1756457471624,11.84995855,208.22,208.09,7.18]
[1756457471823,4.32,208.21,208.09,7.18]
[1756457475521,11.84995855,208.18,208.09,7.18]
[1756457475726,16.16995855,208.18,208.09,7.18]
[1756457476925,4.32,208.13,208.01,4.00883527]
[1756457477121,48.4,208.13,207.99,7.18]
[1756457477527,4.32,208.09,207.99,7.18]
[1756457479332,37.4,208.14,208.0,4.00883527]
[1756457479535,37.4,208.14,208.01,7.18]
[1756457480533,37.4,208.14,208.01,11.18883527]
[1756457482535,37.4,208.14,208.01,7.18]
[1756457482832,37.4,208.14,208.01,11.18883527]
[1756457484334,37.4,208.14,208.02,4.00883527]
[1756457485031,4.32,208.13,208.02,4.00883527]
[1756457485230,4.32,208.13,208.01,11.18883527]
[1756457485635,4.32,208.13,208.01,7.18]
[1756457486327,11.84995855,208.12,208.0,4.00883527]
[1756457486532,26.26995855,208.12,207.97,7.18]
[1756457486935,4.32,208.11,207.97,7.18]
[1756457487135,11.84995855,208.03,207.93,4.00883527]
[1756457487332,4.32,208.02,207.92,11.18883527]
[1756457487638,4.32,208.02,207.92,4.00883527]
[1756457487843,4.32,208.02,207.9,4.00883527]
[1756457488136,4.32,207.98,207.88,7.18]
[1756457488333,4.32,207.98,207.84,4.00883527]
[1756457488533,4.32,207.98,207.83,4.00883527]
[1756457488835,4.32,207.98,207.84,4.00883527]
[1756457489036,4.32,207.98,207.84,11.18883527]
[1756457489432,4.32,207.98,207.84,7.18]
[1756457490232,11.84995855,207.94,207.84,7.18]
[1756457492138,34.32,207.95,207.84,7.18]
[1756457492139,4.32,207.95,207.84,7.18]
[1756457493633,11.84995855,207.93,207.78,77.00636845]
[1756457493935,4.32,207.92,207.79,7.18]
[1756457494936,85.02,207.92,207.79,7.18]
[1756457495236,128.84,207.92,207.8,4.3307]
[1756457495438,128.84,207.92,207.81,7.18]
[1756457495634,16.16995855,207.97,207.81,7.18]
[1756457495835,4.32,207.95,207.82,7.18]
[1756457496340,11.84995855,207.93,207.82,7.18]
[1756457496737,4.34,207.92,207.82,7.18]
[1756457501243,67.3352,207.91,207.82,7.18]
[1756457501442,4.3298,207.86,207.72,322.88]
[1756457501643,4.34,207.88,207.73,7.17]
[1756457502036,4.34,207.88,207.74,4.332]
[1756457502237,4.34,207.88,207.75,7.17]
[1756457504041,11.84995855,207.85,207.75,7.17]
[1756457505751,110.08,207.87,207.62,7.17]
[1756457505752,4.34,207.75,207.62,7.17]
[1756457505952,77.58995855,207.78,207.62,7.17]
[1756457506149,11.84995855,207.78,207.62,7.17]
[1756457506454,4.34,207.77,207.62,7.17]
[1756457506650,11.84995855,207.74,207.62,7.17]
[1756457507154,4.34,207.77,207.62,7.17]
[1756457508160,4.34,207.83,207.62,7.17]
[1756457508351,4.34,207.83,207.66,4.3336]
[1756457508553,4.34,207.83,207.67,7.17]
[1756457509354,67.3638,207.82,207.68,4.3332]
[1756457509559,4.34,207.83,207.69,7.17]
[1756457510754,442.7984,207.84,207.7,7.17]
[1756457511060,375.44,207.84,207.7,7.17]
[1756457511863,52.22,207.84,207.72,7.17]
[1756457512158,56.56,207.84,207.72,7.17]
[1756457514365,4.34,207.89,207.73,7.17]
[1756457514567,4.34,207.89,207.74,7.17]
[1756457515463,4.34,207.89,207.75,4.3317]
[1756457515663,74.62,207.93,207.72,66.74]
[1756457515664,74.62,207.93,207.78,7.17]
[1756457516169,4.34,207.94,207.78,7.17]
[1756457516368,4.34,207.94,207.82,7.17]
[1756457516863,4.3288,207.9,207.82,7.17]
[1756457517071,4.34,207.94,207.82,7.17]
[1756457517268,4.3283,207.93,207.82,11.5003]
[1756457517667,4.3283,207.93,207.83,7.17]
[1756457517872,4.3286,207.91,207.83,7.17]
[1756457518067,4.34,207.94,207.83,7.17]
[1756457518068,67.3293,207.93,207.83,7.17]
[1756457518268,71.6742,207.91,207.77,11.84995855]
[1756457518466,71.6742,207.91,207.78,7.17]
[1756457518467,4.3303,207.83,207.78,7.17]
[1756457518874,71.6941,207.85,207.73,11.84995855]
[1756457519375,4.34,207.85,207.73,11.84995855]
[1756457519573,4.34,207.85,207.74,7.17]
[1756457520872,4.34,207.84,207.68,7.17]
[1756457521077,124.44,207.83,207.68,7.17]
[1756457522474,124.44,207.83,207.67,327.33506845]
[1756457522475,124.44,207.83,207.75,7.17]
[1756457524485,16.18995855,207.82,207.68,11.18506845]
[1756457524779,11.84995855,207.82,207.68,7.17]
[1756457524978,4.34,207.81,207.68,7.17]
[1756457525578,134.66995855,207.86,207.72,7.17]
[1756457525883,4.3304,207.83,207.72,7.17]
[1756457526783,71.6707,207.83,207.72,7.17]
[1756457526979,67.3634,207.82,207.72,7.17]
[1756457527481,67.3634,207.82,207.67,4.01506845]
[1756457527684,4.31,207.81,207.67,7.32]
[1756457527978,4.3315,207.78,207.67,11.6535]
[1756457528179,67.3699,207.8,207.67,7.32]
[1756457528376,67.3699,207.8,207.67,11.33506845]
[1756457528977,4.31,207.79,207.67,7.32]
[1756457529379,67.3699,207.8,207.67,7.32]
[1756457529580,11.84995855,207.78,207.62,193.7984305]
[1756457529779,124.44,207.77,207.62,193.7984305]
[1756457530182,11.84995855,207.74,207.62,193.7984305]
[1756457530381,4.31,207.73,207.62,7.32]
[1756457531388,4.31,207.73,207.63,4.01506845]
[1756457531988,88.21,207.8,207.65,4.01506845]
[1756457532187,4.3313,207.78,207.65,4.01506845]
[1756457532391,88.21,207.8,207.65,4.01506845]
[1756457532693,88.21,207.8,207.66,4.01506845]
[1756457533188,67.3739,207.79,207.66,4.01506845]
[1756457533388,155.5802,207.8,207.63,5.31585649]
[1756457533389,4.31,207.83,207.68,4.01506845]
[1756457533696,4.31,207.89,207.75,7.32]
[1756457533886,67.3473,207.87,207.77,7.32]
[1756457534189,4.31,207.85,207.72,11.33506845]
[1756457534389,67.3566,207.84,207.73,4.01506845]
[1756457534587,4.31,207.85,207.72,11.33506845]
[1756457534786,128.75,207.85,207.73,4.01506845]
[1756457534987,128.75,207.85,207.75,4.01506845]
[1756457535188,128.75,207.85,207.72,4.01506845]
[1756457535189,67.3598,207.83,207.72,4.01506845]
[1756457535384,4.3321,207.74,207.72,4.01506845]
[1756457535589,4.3321,207.74,207.69,7.32]
[1756457535793,67.3735,207.79,207.69,7.32]
[1756457536089,4.332,207.75,207.69,7.32]
[1756457536389,4.34,207.82,207.7,4.01506845]
[1756457536592,4.34,207.82,207.66,193.23853809]
[1756457536593,67.3768,207.78,207.72,7.32]
[1756457536790,67.3768,207.78,207.66,189.36035466]
[1756457536791,67.3791,207.77,207.69,4.01506845]
[1756457536991,67.3791,207.77,207.68,4.01506845]
[1756457537789,4.3324,207.73,207.68,4.01506845]
[1756457537988,4.3324,207.73,207.68,11.33506845]
[1756457538297,4.3324,207.73,207.66,181.38857954]
[1756457538298,67.392,207.73,207.66,4.01506845]
[1756457538596,4.34,207.75,207.65,4.01506845]
[1756457538793,67.3892,207.74,207.65,4.01506845]
[1756457538991,67.3892,207.74,207.64,4.01506845]
[1756457539197,4.34,207.73,207.63,4.01506845]
[1756457539596,4.34,207.73,207.61,7.32]
[1756457539597,4.34,207.73,207.64,4.01506845]
[1756457540692,4.34,207.73,207.63,4.01506845]
[1756457540893,16.18995855,207.73,207.6,4.01506845]
[1756457541198,16.18995855,207.73,207.59,4.01506845]
[1756457541788,4.34,207.73,207.59,4.01506845]
[1756457541993,4.34,207.73,207.62,4.01506845]
[1756457542501,4.34,207.73,207.63,11.33506845]
[1756457543000,4.34,207.73,207.63,7.32]
[1756457543598,4.34,207.73,207.63,11.33506845]
[1756457543798,106.24,207.74,207.64,4.01506845]
[1756457543999,11.84995855,207.77,207.64,4.01506845]
[1756457544201,124.54,207.76,207.65,4.01506845]
[1756457544396,4.34,207.78,207.66,7.32]
[1756457544596,528.0,208.53,207.66,7.32]
[1756457544597,124.54,207.82,207.7,7.32]
[1756457544899,4.34,207.83,207.73,4.01506845]
[1756457545098,124.56,207.85,207.74,7.32]
[1756457545495,124.56,207.85,207.75,4.3318]
[1756457545695,124.56,207.85,207.77,4.01506845]
[1756457546196,124.56,207.85,207.76,7.32]
[1756457547098,11.84995855,207.83,207.72,4.01506845]
[1756457547305,67.3888,207.74,207.67,4.01506845]
[1756457547600,4.3329,207.7,207.66,4.01506845]
[1756457547793,4.3329,207.7,207.66,11.33506845]
[1756457548299,67.3898,207.74,207.66,7.32]
[1756457548496,4.34,207.75,207.66,11.33506845]
[1756457549101,124.64,207.79,207.67,4.01506845]
[1756457549291,124.64,207.79,207.68,4.01506845]
[1756457549495,124.64,207.79,207.69,4.01506845]
[1756457550901,4.34,207.8,207.7,11.33506845]
[1756457551396,11.84995855,207.85,207.7,11.33506845]
[1756457551590,5.29774266,208.01,207.76,4.01506845]
[1756457551795,129.04,207.9,207.77,4.01506845]
[1756457551995,129.04,207.9,207.78,4.01506845]
[1756457552200,129.04,207.9,207.77,4.01506845]
[1756457552590,129.04,207.9,207.76,4.01506845]
[1756457552998,4.34,207.9,207.78,11.33506845]
[1756457553203,4.34,207.9,207.79,4.01506845]
[1756457553705,448.16,207.91,207.75,4.01506845]
[1756457553706,4.34,207.88,207.75,4.01506845]
[1756457554003,4.34,207.88,207.74,4.01506845]
[1756457554197,4.34,207.88,207.75,4.01506845]
[1756457554398,11.84995855,207.89,207.73,11.33506845]
[1756457554592,448.16,207.91,207.71,4.01506845]
[1756457554593,11.84995855,207.81,207.71,4.01506845]
[1756457554796,11.84995855,207.81,207.67,193.33747005]
[1756457554797,4.34,207.79,207.69,4.01506845]
[1756457555202,49.4,207.78,207.7,4.01506845]
[1756457555403,98.76,207.79,207.7,4.01506845]
[1756457555595,98.76,207.79,207.69,4.01506845]
[1756457555802,129.18,207.79,207.71,4.01506845]
[1756457556001,4.34,207.86,207.72,11.33506845]
[1756457556304,4.34,207.86,207.74,4.01506845]
[1756457556305,71.62,207.85,207.74,4.01506845]
[1756457556798,4.34,207.84,207.73,4.01506845]
[1756457557005,67.3696,207.8,207.72,11.33506845]
[1756457557204,67.3727,207.79,207.72,7.32]
[1756457557400,67.3727,207.79,207.71,4.01506845]
[1756457557807,67.3664,207.81,207.71,4.01506845]
[1756457558104,67.3824,207.76,207.71,4.01506845]
[1756457558304,71.7224,207.76,207.69,4.01506845]
[1756457558510,4.34,207.76,207.69,11.29506845]
[1756457558809,67.3855,207.75,207.69,4.01506845]
[1756457559310,4.3329,207.71,207.69,4.01506845]
[1756457559609,4.3329,207.71,207.68,11.29506845]
[1756457560004,4.3329,207.71,207.68,7.28]
[1756457560802,124.74,207.76,207.69,7.28]
[1756457561006,124.74,207.76,207.69,11.29506845]
[1756457561206,4.3331,207.7,207.67,4.01506845]
[1756457561505,4.3331,207.7,207.67,7.28]
[1756457561809,4.3331,207.7,207.67,11.29506845]
[1756457562207,4.3331,207.7,207.68,7.28]
[1756457562909,67.3826,207.76,207.69,4.01506845]
[1756457563312,67.3856,207.75,207.69,4.01506845]
[1756457563502,4.3329,207.71,207.69,4.01506845]
[1756457563704,67.3966,207.72,207.67,4.01506845]
[1756457564606,4.34,207.67,207.59,5.31585649]
[1756457564805,67.4149,207.66,207.58,5.31585649]
[1756457565004,4.3346,207.62,207.59,7.28]
[1756457565404,67.4149,207.66,207.59,7.28]
[1756457565916,67.4149,207.66,207.58,5.31585649]
[1756457566208,67.4149,207.66,207.54,7.28]
[1756457566209,4.34,207.64,207.54,5.31585649]
[1756457566511,104.66,207.63,207.51,5.31585649]
[1756457566911,125.18,207.62,207.51,5.31585649]
[1756457567105,4.34,207.64,207.51,5.31585649]
[1756457567306,62.92,207.63,207.51,5.31585649]
[1756457568112,62.92,207.63,207.5,5.31585649]
[1756457568609,4.34,207.64,207.5,5.31585649]
[1756457568806,36.1,207.63,207.49,16.93295649]
[1756457569012,4.34,207.64,207.49,16.93295649]
[1756457569416,19.82,207.63,207.49,16.93295649]
[1756457569813,19.82,207.63,207.49,12.59585649]
[1756457570118,4.34,207.64,207.49,12.59585649]
[1756457570321,4.34,207.62,207.49,5.31585649]
[1756457570622,4.34,207.62,207.45,5.31585649]
[1756457571225,17.76,207.61,207.44,12.59585649]
[1756457571427,4.34,207.62,207.45,5.31585649]
[1756457571826,4.34,207.6,207.45,5.31585649]
[1756457572227,9.64,207.59,207.45,5.31585649]
[1756457572432,17.58,207.59,207.45,5.31585649]
[1756457572636,25.12,207.58,207.46,7.28]
[1756457572928,4.34,207.57,207.46,7.28]
[1756457573122,25.12,207.58,207.39,5.31585649]
[1756457573123,67.441,207.58,207.39,5.31585649]
[1756457573429,4.34,207.5,207.38,7.28]
[1756457573928,67.4798,207.46,207.34,5.31585649]
[1756457574126,67.4798,207.46,207.33,7.28]
[1756457574329,4.3386,207.43,207.33,7.28]
[1756457574632,4.34,207.42,207.33,7.28]
[1756457575124,4.34,207.42,207.3,298.36548879]
[1756457575324,67.5028,207.39,207.3,298.36548879]
[1756457575629,67.503,207.39,207.3,298.36548879]
[1756457575829,67.4973,207.41,207.3,298.36548879]
[1756457576126,67.4973,207.41,207.28,7.28]
[1756457576127,4.34,207.39,207.28,7.28]
[1756457578229,67.4862,207.44,207.28,7.28]
[1756457578230,79.14,207.43,207.28,7.28]
[1756457578639,99.74,207.44,207.28,7.28]
[1756457579335,110.6,207.43,207.31,7.28]
[1756457579927,4.34,207.44,207.31,7.28]
[1756457580126,4.34,207.49,207.31,7.28]
[1756457580336,4.34,207.49,207.36,7.28]
[1756457580630,4.12,207.5,207.36,7.28]
[1756457580836,4.34,207.49,207.36,7.28]
[1756457581229,4.34,207.49,207.3,80.44]
[1756457581429,4.12,207.5,207.3,84.7812]
[1756457581430,4.34,207.45,207.3,84.7812]
[1756457581630,30.55791967,207.5,207.31,7.28]
[1756457581831,18.62,207.5,207.35,7.28]
[1756457582137,18.62,207.5,207.35,11.6202]
[1756457582334,18.62,207.5,207.35,7.28]
[1756457582629,4.34,207.49,207.35,7.28]
[1756457583134,4.34,207.45,207.3,7.28]
[1756457583335,11.93791967,207.42,207.25,7.28]
[1756457583535,67.5085,207.37,207.25,7.28]
[1756457583736,4.3405,207.34,207.25,7.28]
[1756457583930,4.3405,207.34,207.2,506.9256611]
[1756457583931,4.34,207.48,207.31,11.93791967]
[1756457584139,4.34,207.48,207.32,7.28]
[1756457584329,4.34,207.48,207.33,7.28]
[1756457584726,4.34,207.48,207.34,4.3404]
[1756457584929,57.53791967,207.47,207.33,7.28]
[1756457585136,4.34,207.46,207.33,7.28]
[1756457587533,323.84,207.58,207.35,7.35]
[1756457587534,4.36,207.53,207.35,7.35]
[1756457587735,4.36,207.47,207.35,7.35]
[1756457589727,32.04,207.47,207.35,7.35]
[1756457590732,4.36,207.43,207.28,7.35]
[1756457591628,4.36,207.43,207.21,28.29922155]
[1756457591629,4.36,207.43,207.3,7.35]
[1756457594536,71.08,207.46,207.31,7.35]
[1756457594742,328.26,207.48,207.3,11.93791967]
[1756457594934,328.26,207.48,207.31,7.35]
[1756457595336,127.36,207.58,207.39,7.35]
[1756457595534,4.36,207.57,207.39,7.35]
[1756457595938,4.36,207.55,207.39,7.35]
[1756457596339,4.36,207.55,207.43,7.35]
[1756457596542,90.3,207.59,207.43,7.35]
[1756457597336,4.36,207.58,207.43,7.35]
[1756457597639,4.36,207.56,207.43,7.35]
[1756457599643,67.4539,207.54,207.43,7.35]
[1756457599838,4.3366,207.53,207.43,7.35]
[1756457600136,4.36,207.56,207.43,7.35]
[1756457600336,4.36,207.56,207.43,11.6885]
[1756457600838,4.36,207.56,207.43,7.35]
[1756457601039,4.3366,207.53,207.43,7.35]
[1756457601234,4.36,207.6,207.44,7.35]
[1756457601631,207.7119928,207.61,207.44,7.35]
[1756457601839,4.36,207.6,207.44,7.35]
[1756457602241,207.7119928,207.61,207.44,7.35]
[1756457602436,4.36,207.6,207.44,7.35]
[1756457602635,207.7119928,207.61,207.44,7.35]
[1756457602843,4.36,207.6,207.44,7.35]
[1756457603434,207.7119928,207.61,207.44,7.35]
[1756457603832,4.36,207.6,207.44,7.35]
[1756457604843,455.86,207.64,207.48,7.35]
[1756457605242,328.3,207.64,207.48,7.35]
[1756457606035,328.3,207.64,207.51,7.35]
[1756457606241,323.94,207.64,207.51,7.35]
[1756457606540,4.36,207.67,207.51,7.35]
[1756457607342,4.36,207.67,207.51,11.6867]
[1756457607742,4.36,207.67,207.51,7.35]
[1756457608041,67.4147,207.66,207.54,7.35]
[1756457608638,4.36,207.67,207.54,7.35]
[1756457608639,67.4184,207.65,207.54,7.35]
[1756457608839,67.4248,207.63,207.54,7.35]
[1756457609844,67.4184,207.65,207.54,7.35]
[1756457610244,7.94661399,207.85,207.48,62.3]
[1756457610245,71.7563,207.72,207.58,7.35]
[1756457610746,4.36,207.72,207.58,7.35]
[1756457612241,4.36,207.72,207.58,11.6854]
[1756457612844,4.36,207.72,207.58,7.35]
[1756457613541,323.84,207.76,207.62,7.35]
[1756457615649,323.84,207.76,207.63,4.3343]
[1756457615847,323.84,207.76,207.62,7.35]
[1756457616347,323.84,207.76,207.62,11.6844]
[1756457616649,323.84,207.76,207.62,7.35]
[1756457617146,4.34,207.75,207.62,7.35]
[1756457617647,4.34,207.75,207.58,7.46]
[1756457617842,323.84,207.76,207.58,7.46]
[1756457617843,11.93791967,207.69,207.58,7.46]
[1756457618041,4.34,207.67,207.58,7.46]
[1756457620345,4.34,207.67,207.52,7.46]
[1756457620541,131.06,207.67,207.52,7.46]
[1756457620747,142.99791967,207.67,207.52,7.46]
[1756457621137,4.34,207.67,207.52,19.39791967]
[1756457621347,4.34,207.75,207.57,7.46]
[1756457621646,11.93791967,207.72,207.57,7.46]
[1756457621948,4.34,207.67,207.52,7.46]
[1756457622144,4.34,207.63,207.52,7.46]
[1756457622450,90.44,207.62,207.52,7.46]
[1756457622852,4.34,207.61,207.45,7.46]